bitfinex/quotes_ETHUSD_20260111
["timestamp","ask_amount","ask_price","bid_price","bid_amount"]
[1768148912794,0.53177724,3122.0,3121.3,0.93300213]
[1768148912995,0.53177724,3121.8,3120.9,0.93300213]
[1768148913194,4.44419409,3122.0,3120.7,0.93300213]
[1768148913195,0.53177724,3121.6,3120.7,0.93300213]
[1768148913410,0.53177724,3121.4,3120.5,1.18500213]
[1768148913815,0.53177724,3121.4,3120.6,0.9386334]
[1768148913994,0.53177724,3121.4,3120.7,0.9386334]
[1768148914397,0.04003971,3121.9,3120.9,0.9386334]
[1768148914604,0.04003971,3121.9,3120.7,3.20440742]
[1768148914605,0.002,3122.3,3121.6,5.38282749]
[1768148914784,0.002,3122.6,3122.0,0.9386334]
[1768148914990,0.002,3122.6,3122.1,0.9386334]
[1768148916827,0.002,3122.6,3122.1,0.93749017]
[1768148917418,0.002,3122.6,3122.0,0.252]
[1768148920188,0.53492047,3122.6,3122.0,1e-08]
[1768148920512,3.20286977,3122.2,3121.5,0.252]
[1768148921101,0.04003715,3122.1,3121.9,0.001]
[1768148922526,0.57295762,3122.1,3121.2,0.9386334]
[1768148922732,0.69786972,3122.0,3121.2,0.9386334]
[1768148922950,1.23079019,3122.0,3121.0,0.9386334]
[1768148923096,1.23079019,3122.0,3120.3,4.44419409]
[1768148923097,0.53292047,3121.7,3120.7,0.9386334]
[1768148923297,4.44419409,3121.5,3120.7,0.9386334]
[1768148923531,5.22911456,3121.7,3120.7,0.9386334]
[1768148923700,0.52291146,3121.6,3120.7,0.9386334]
[1768148923899,0.53292047,3121.5,3120.5,1.1906334]
[1768148924133,0.53292047,3121.5,3120.5,4.39524392]
[1768148924398,3.20369065,3121.4,3120.5,1.1906334]
[1768148924695,3.20369065,3121.4,3120.6,0.9386334]
[1768148924899,0.69402332,3121.3,3120.6,0.9386334]
[1768148925094,0.69402332,3121.3,3120.3,4.14342505]
[1768148925299,0.69402332,3121.3,3120.3,0.9386334]
[1768148926497,6.40779186,3121.2,3120.3,0.9386334]
[1768148927397,0.53292047,3121.1,3120.3,0.9386334]
[1768148927602,0.69407123,3121.0,3120.3,0.9386334]
[1768148928025,0.69407123,3121.0,3120.2,0.0018275]
[1768148928399,1.2269917,3121.0,3120.2,0.0018275]
[1768148928807,6.40840782,3120.9,3120.2,0.0018275]
[1768148929614,6.94132829,3120.9,3120.2,0.0018275]
[1768148929826,0.816832,3120.8,3120.2,0.0018275]
[1768148930038,1.34975247,3120.8,3120.2,0.0018275]
[1768148931008,6.94173899,3120.7,3120.2,0.0018275]
[1768148931410,6.40881852,3120.7,3120.2,0.0018275]
[1768148932325,0.69402332,3121.3,3121.2,0.9386334]
[1768148932524,0.252,3122.1,3121.2,0.9386334]
[1768148933018,6.4061499,3122.0,3121.2,0.9386334]
[1768148934310,3.20307495,3122.0,3121.2,0.9386334]
[1768148935119,0.53292047,3121.9,3120.9,0.9386334]
[1768148935323,0.90652001,3121.8,3120.9,0.9386334]
[1768148937452,3.73630324,3121.7,3120.8,3.27218175]
[1768148938035,0.252,3121.6,3120.8,0.06791275]
[1768148938235,0.252,3121.6,3120.8,3.27221889]
[1768148938424,0.252,3121.6,3120.9,4.14283291]
[1768148938638,3.20322531,3121.9,3121.0,0.9386334]
[1768148938837,0.57232253,3121.8,3121.0,0.9386334]
[1768148939451,0.53292047,3121.6,3120.8,0.06791275]
[1768148939826,0.53292047,3121.6,3120.8,3.27221035]
[1768148940446,0.53292047,3121.6,3120.8,0.06791275]
[1768148940746,0.53292047,3121.6,3120.8,3.27215704]
[1768148940925,0.53292047,3121.6,3120.9,3.20417751]
[1768148941318,0.252,3121.7,3121.0,0.95803597]
[1768148941518,0.53292047,3122.1,3121.1,0.95803597]
[1768148941723,3.45515093,3122.0,3121.1,0.95803597]
[1768148941919,3.2028903,3122.2,3121.1,0.95803597]
[1768148942156,0.252,3122.1,3121.1,0.95803597]
[1768148943453,3.4550498,3122.1,3121.2,0.95803597]
[1768148943750,4.1210323,3122.1,3121.2,0.95803597]
[1768148945762,0.002,3121.8,3121.3,0.9704072]
[1768148946636,0.002,3121.8,3121.4,0.9704072]
[1768148947035,0.002,3122.1,3121.8,0.9704072]
[1768148949462,0.002,3122.1,3121.4,0.91449833]
[1768148950331,0.002,3122.1,3121.5,0.91449833]
[1768148950856,0.002,3122.6,3122.2,0.91449833]
[1768148951232,0.002,3122.6,3122.0,0.252]
[1768148951233,0.254,3123.4,3122.7,0.91449833]
[1768148951738,0.002,3123.4,3122.7,0.91449833]
[1768148952130,0.002,3123.4,3122.9,0.91449833]
[1768148953564,0.53692047,3123.4,3122.4,0.000804]
[1768148953769,0.53692047,3123.4,3122.5,0.91449833]
[1768148954367,3.20174174,3123.3,3122.5,0.91449833]
[1768148954860,6.40348348,3123.3,3122.5,0.91449833]
[1768148955168,0.78692047,3123.2,3122.4,0.000804]
[1768148956363,3.20194678,3123.1,3122.4,0.000804]
[1768148956761,3.20194678,3123.1,3122.4,0.91530233]
[1768148957540,0.53692047,3123.4,3122.4,0.91530233]
[1768148957541,0.002,3123.4,3122.8,0.91449833]
[1768148957740,3.20040965,3124.6,3123.4,0.91449833]
[1768148957939,6.4008193,3124.6,3123.4,0.91449833]
[1768148958337,9.60122895,3124.6,3123.4,0.91449833]
[1768148958544,0.0496544,3124.5,3123.4,0.91449833]
[1768148958877,0.252,3124.4,3123.4,0.91449833]
[1768148959175,1.23752289,3124.4,3123.4,0.91449833]
[1768148959877,0.98552289,3124.4,3123.4,0.91449833]
[1768148960268,6.40143392,3124.3,3123.4,0.91449833]
[1768148961583,3.20071696,3124.3,3123.4,0.91449833]
[1768148961982,6.40143392,3124.3,3123.4,0.91449833]
[1768148962147,7.1655296,3124.3,3123.4,0.91449833]
[1768148965880,10.36624656,3124.3,3123.4,0.91449833]
[1768148966082,0.91355572,3124.2,3123.1,0.252]
[1768148966379,0.91355572,3124.2,3123.1,1.16649833]
[1768148966584,6.40184372,3124.1,3123.1,0.91449833]
[1768148966787,0.73153994,3124.0,3123.1,0.91449833]
[1768148966961,0.73153994,3124.0,3122.9,0.252]
[1768148966962,0.91355572,3123.8,3122.9,0.91449833]
[1768148967178,0.252,3123.9,3122.9,0.91449833]
[1768148967555,0.73153994,3124.0,3122.9,0.91449833]
[1768148968007,0.98353994,3124.0,3123.1,0.91449833]
[1768148968298,0.73853837,3123.9,3123.1,0.91449833]
[1768148968460,0.91355572,3123.8,3122.7,0.91449833]
[1768148968665,9.60399525,3123.7,3122.7,0.91449833]
[1768148968866,0.95357364,3123.6,3122.7,0.91449833]
[1768148969181,1.16555572,3123.5,3122.5,0.91449833]
[1768148969384,0.91355572,3123.4,3122.4,0.000804]
[1768148970363,0.91355572,3123.4,3122.3,0.24980796]
[1768148970563,0.000804,3122.8,3122.3,0.24980796]
[1768148970782,0.000804,3122.8,3122.1,0.91449833]
[1768148972067,0.000804,3122.8,3120.6,3.20446715]
[1768148972068,0.91435972,3122.8,3121.8,0.91449833]
[1768148973309,0.91355572,3122.6,3121.6,0.91449833]
[1768148973599,1.16555572,3122.5,3121.4,1.16649833]
[1768148973798,0.91355572,3122.4,3121.4,0.252]
[1768148974466,0.91355572,3122.4,3121.4,0.92982303]
[1768148974674,0.91355572,3122.4,3120.9,0.252]
[1768148974675,0.9273961,3122.3,3120.9,0.252]
[1768148974879,0.9370441,3122.3,3121.0,0.92982303]
[1768148975075,0.9370441,3122.3,3120.9,0.252]
[1768148975278,0.9273961,3122.1,3120.9,0.252]
[1768148975478,0.9273961,3122.0,3120.9,0.252]
[1768148975681,0.9273961,3121.8,3120.5,0.93082303]
[1768148975993,0.9273961,3121.8,3120.5,0.001]
[1768148976504,0.4413961,3121.4,3120.5,0.001]
[1768148976719,1.16598906,3121.3,3120.5,0.001]
[1768148976878,0.91398906,3121.2,3120.5,0.001]
[1768148977214,0.009648,3121.9,3120.5,0.001]
[1768148977215,0.252,3121.1,3120.5,0.001]
[1768148977377,0.252,3121.0,3120.5,0.001]
[1768148977580,0.252,3121.1,3120.5,0.001]
[1768148977891,0.252,3121.2,3120.5,0.001]
[1768148979458,0.252,3121.3,3120.5,0.001]
[1768148979610,7.32116508,3121.5,3120.5,0.001]
[1768148979812,0.252,3121.4,3120.5,0.93082303]
[1768148980820,7.32116508,3121.5,3120.5,0.93082303]
[1768148981025,0.252,3121.4,3120.5,0.93082303]
[1768148981426,6.40758658,3121.3,3120.5,0.93082303]
[1768148981632,3.20379329,3121.3,3120.5,0.93082303]
[1768148981830,6.40758658,3121.3,3120.8,0.001]
[1768148984654,7.32157564,3121.3,3120.8,0.001]
[1768148985455,7.32157564,3121.3,3120.5,0.001]
[1768148986483,0.002,3122.0,3120.5,0.001]
[1768148986484,0.000804,3122.8,3122.6,0.92982303]
[1768148986644,0.252,3122.9,3122.4,0.00080408]
[1768148986850,0.009648,3122.5,3120.8,0.92982303]
[1768148987048,0.252,3122.4,3121.1,0.92982303]
[1768148987350,0.252,3122.4,3121.5,0.92982303]
[1768148988082,0.252,3122.4,3121.6,0.92982303]
[1768148988246,0.252,3122.3,3121.6,0.92982303]
[1768148988447,0.252,3122.3,3121.8,0.92982303]
[1768148991584,0.252,3122.3,3121.6,0.92982303]
[1768148991983,0.252,3122.3,3121.6,4.13327221]
[1768148992290,0.252,3122.3,3121.7,0.92982303]
[1768148994422,0.002,3122.0,3121.7,0.92982303]
[1768148996034,0.00080408,3122.8,3122.0,0.92982303]
[1768148996614,0.00080408,3122.8,3122.1,0.92982303]
[1768148997126,0.252,3122.7,3122.1,0.92982303]
[1768148998000,0.252,3122.7,3122.3,0.92982303]
[1768149000732,0.252,3122.7,3121.7,3.93904037]
[1768149000733,6.6663653,3122.7,3121.6,0.92982303]
[1768149000933,0.34550901,3122.6,3121.8,4.13309335]
[1768149001143,0.00080408,3122.8,3122.3,0.92982303]
[1768149001526,0.002,3123.6,3122.7,0.92982303]
[1768149001527,3.20352543,3123.6,3122.7,0.92982303]
[1768149001849,6.65507346,3123.5,3122.7,0.92982303]
[1768149002048,6.65507346,3123.5,3122.4,0.93062719]
[1768149003254,3.19887399,3126.1,3124.3,0.44942431]
[1768149003454,0.25119704,3126.0,3124.7,0.93065381]
[1768149003687,0.252,3125.9,3124.7,0.93065381]
[1768149003969,0.00080296,3126.4,3125.2,0.94118739]
[1768149004111,0.00080296,3126.4,3125.5,0.94118739]
[1768149004306,0.00080296,3126.4,3125.3,3.5300153]
[1768149004307,0.00080296,3126.4,3125.6,0.29499823]
[1768149004519,0.00080296,3126.4,3124.9,3.20000132]
[1768149004757,0.01045096,3126.4,3125.0,0.29502736]
[1768149004913,0.01045096,3126.4,3125.1,0.29502736]
[1768149005113,0.01045096,3126.4,3124.7,0.94201817]
[1768149005114,0.00080296,3126.4,3124.7,0.94201817]
[1768149005314,0.9402365,3126.1,3124.8,0.29457933]
[1768149005531,0.9402365,3126.1,3124.7,0.00083078]
[1768149005709,0.05043304,3126.4,3124.8,0.32012121]
[1768149006114,3.19866935,3126.3,3124.9,0.94118739]
[1768149006314,0.002,3126.1,3124.9,0.94118739]
[1768149007845,0.9498845,3126.0,3124.7,0.00083078]
[1768149008047,4.10730747,3125.9,3124.7,0.00083078]
[1768149008215,3.61000941,3125.9,3124.7,0.00083078]
[1768149009357,0.90822881,3126.3,3124.7,0.00083078]
[1768149009358,0.00280296,3126.4,3125.5,0.92149842]
[1768149009526,0.00280296,3126.4,3125.7,0.92149842]
[1768149009723,0.252,3126.3,3125.7,0.92149842]
[1768149010324,0.252,3126.3,3125.3,0.93114642]
[1768149010521,0.252,3126.3,3125.4,6.27156564]
[1768149010725,0.252,3126.3,3125.5,0.72027121]
[1768149010926,0.252,3126.3,3125.4,3.266]
[1768149011136,3.45071448,3126.3,3125.1,0.009648]
[1768149011345,3.45071448,3126.3,3125.2,3.256269]
[1768149011562,6.64942896,3126.3,3125.0,5.41414044]
[1768149011855,3.45071448,3126.3,3125.0,10.302184]
[1768149012057,0.009648,3127.3,3125.0,10.302184]
[1768149012058,0.002,3127.7,3126.0,0.71112081]
[1768149012220,0.91787681,3128.5,3126.2,30.0]
[1768149012221,0.252,3127.5,3126.2,30.0]
[1768149012450,0.252,3127.4,3126.4,27.183297]
[1768149012752,0.90822881,3128.3,3126.7,30.0]
[1768149012753,0.252,3127.5,3126.7,30.0]
[1768149012926,0.252,3127.5,3126.7,26.09981042]
[1768149013123,0.252,3127.6,3126.8,0.92149842]
[1768149013462,0.252,3127.6,3126.5,5.36154742]
[1768149013637,0.252,3127.6,3126.3,10.168398]
[1768149013836,0.252,3127.6,3126.1,6.39774798]
[1768149013837,0.252,3127.6,3126.4,1.04279206]
[1768149014166,0.252,3127.6,3126.2,6.080994]
[1768149014324,3.19744204,3127.5,3126.4,4.583]
[1768149014519,3.19744204,3127.5,3126.0,0.92230146]
[1768149014816,6.39488408,3127.5,3126.3,2.2557]
[1768149015050,6.39488408,3127.5,3126.1,3.448189]
[1768149015238,6.39488408,3127.5,3126.2,3.19874313]
[1768149015646,3.19744204,3127.5,3126.2,3.19874313]
[1768149015858,3.19744204,3127.5,3126.2,6.3975148]
[1768149016051,0.252,3127.4,3126.2,6.3975148]
[1768149016252,0.90822881,3127.8,3126.1,7.3192464]
[1768149016455,0.252,3127.3,3126.2,0.73200494]
[1768149016643,0.252,3127.2,3126.3,5.890821]
[1768149016955,3.19615909,3128.8,3126.2,0.73200494]
[1768149016956,0.00080368,3129.3,3128.3,0.00082012]
[1768149017159,3.19609668,3129.7,3128.9,0.00080376]
[1768149017365,0.252,3129.2,3128.9,0.00080376]
[1768149017660,3.19606959,3129.7,3129.1,3.890809]
[1768149017661,0.0008096,3129.7,3129.1,3.890809]
[1768149017831,0.2528096,3129.7,3129.0,14.825847]
[1768149018158,0.2528096,3129.7,3128.9,0.00080376]
[1768149018159,0.252,3129.6,3128.9,0.00080376]
[1768149018321,0.252,3129.5,3128.9,0.00080376]
[1768149019124,0.90903257,3129.3,3128.3,0.00082012]
[1768149019356,0.90903257,3129.3,3127.1,0.92149842]
[1768149019357,0.00082012,3128.7,3127.4,3.19754324]
[1768149019573,0.252,3128.6,3127.4,16.42949818]
[1768149019787,1.16022881,3128.6,3126.5,0.16]
[1768149020073,1.16022881,3128.6,3127.1,4.187877]
[1768149020250,6.39284,3128.5,3126.8,2.59427]
[1768149020425,6.39284,3128.5,3126.8,0.57924643]
[1768149020426,0.92830377,3128.4,3126.8,0.57924643]
[1768149020630,0.90822881,3128.4,3126.6,4.024835]
[1768149020935,0.90822881,3128.4,3126.8,3.19812392]
[1768149020936,0.251,3128.3,3126.8,3.19812392]
[1768149021131,0.251,3128.3,3126.9,7.534209]
[1768149021459,6.39284,3128.5,3127.0,3.22993283]
[1768149021460,0.251,3128.2,3127.0,3.22993283]
[1768149021647,0.251,3128.2,3127.1,30.0]
[1768149021829,0.251,3128.2,3127.3,16.469888]
[1768149022237,0.251,3128.2,3127.4,3.19754428]
[1768149022426,0.00082012,3128.7,3127.6,0.25952256]
[1768149022628,0.00082012,3128.7,3127.8,30.0]
[1768149022823,0.25182012,3128.7,3127.8,30.0]
[1768149023023,0.00082012,3128.7,3128.0,5.790872]
[1768149023230,0.00082012,3128.7,3127.8,29.046652]
[1768149023455,0.00082012,3128.7,3127.8,28.046652]
[1768149024155,0.00082012,3128.7,3127.7,0.93114642]
[1768149024156,0.25182012,3128.7,3127.7,0.93114642]
[1768149024363,0.25182012,3128.7,3127.8,3.19713536]
[1768149024534,0.25182012,3128.7,3128.0,13.202379]
[1768149024732,0.00082012,3128.7,3128.0,13.202379]
[1768149024938,0.251,3128.6,3128.0,7.44576]
[1768149025460,0.251,3128.6,3128.0,2.945004]
[1768149025632,0.251,3128.6,3127.0,30.0]
[1768149025963,0.251,3128.6,3127.2,2.077226]
[1768149026326,3.19642,3128.5,3127.2,2.077226]
[1768149026527,6.39284,3128.5,3127.1,4.715484]
[1768149026728,6.39284,3128.5,3127.2,2.247167]
[1768149026931,6.39284,3128.5,3126.6,16.458644]
[1768149026932,0.90822881,3128.4,3126.6,16.458644]
[1768149027127,0.90822881,3128.3,3126.7,0.77659712]
[1768149027336,0.90822881,3128.3,3126.2,1.59553525]
[1768149027337,0.90822881,3128.1,3126.4,5.47662936]
[1768149027537,0.90822881,3128.1,3126.5,5.47656205]
[1768149027736,0.90822881,3128.1,3126.6,2.223918]
[1768149027936,0.90822881,3128.1,3126.2,0.73200494]
[1768149028226,0.90822881,3128.1,3126.2,5.4318424]
[1768149028458,0.90822881,3127.9,3126.3,3.19866687]
[1768149028656,3.1966906,3128.3,3126.3,3.19866687]
[1768149028657,0.0008096,3129.7,3127.6,0.86353031]
[1768149028929,0.2501896,3129.2,3128.9,0.00080384]
[1768149029247,3.19499025,3129.9,3128.9,0.00080384]
[1768149029248,3.19499025,3129.9,3129.3,0.00081121]
[1768149029448,3.19499025,3129.9,3129.2,0.02031817]
[1768149029449,0.00081121,3129.7,3129.2,0.02031817]
[1768149030463,3.19600563,3129.7,3129.2,0.02031817]
[1768149030962,3.19600563,3129.7,3128.3,0.00082094]
[1768149030963,0.00080384,3129.3,3128.3,3.19742825]
[1768149031151,0.00080384,3129.3,3128.3,0.00082094]
[1768149031359,0.251,3129.2,3128.4,3.19651761]
[1768149031560,0.251,3129.1,3128.5,3.19637803]
[1768149031759,0.251,3129.1,3128.6,0.92149842]
[1768149031973,0.00080384,3129.3,3128.6,0.92149842]
[1768149032173,0.251,3129.2,3128.6,0.92149842]
[1768149032775,0.25180384,3129.3,3128.7,6.39243136]
[1768149032975,0.251,3129.5,3128.7,7.07286287]
[1768149033201,0.251,3129.5,3128.9,0.92230234]
[1768149033749,0.251,3129.6,3128.9,0.00080392]
[1768149033971,0.251,3129.6,3129.0,0.91566639]
[1768149034175,0.25181121,3129.7,3129.0,0.91566639]
[1768149034380,0.25181121,3129.7,3128.9,0.00080392]
[1768149034381,3.44702315,3129.7,3128.9,0.00080392]
[1768149034556,0.34470232,3129.6,3128.9,0.00080392]
[1768149035248,3.54000772,3129.6,3128.9,0.00080392]
[1768149035787,0.00080392,3129.3,3128.6,3.19631534]
[1768149036079,0.251,3129.2,3128.7,0.94762854]
[1768149036575,0.00080392,3129.3,3128.7,0.94762854]
[1768149036781,0.00080392,3129.3,3128.8,7.12625321]
[1768149036975,0.00080392,3129.3,3128.8,3.93013969]
[1768149037182,0.00081121,3129.7,3128.9,5.27169056]
[1768149037390,0.00081121,3129.7,3129.1,1.17518895]
[1768149037686,0.3227085,3130.0,3129.3,0.00081202]
[1768149038187,4.18811159,3131.3,3129.3,0.00081202]
[1768149038188,0.99449676,3131.2,3130.0,0.00080112]
[1768149038369,0.251,3131.1,3130.0,0.00080112]
[1768149038573,1.24549676,3131.1,3130.0,0.00080112]
[1768149038754,0.99449676,3130.8,3129.3,0.00081202]
[1768149038959,0.00080112,3130.4,3129.3,0.00081202]
[1768149039161,0.251,3130.3,3129.3,0.00081202]
[1768149039989,0.00080112,3130.4,3129.3,0.32047393]
[1768149040198,0.00080112,3130.4,3129.4,4.047959]
[1768149040358,0.00080112,3130.4,3129.3,0.32047393]
[1768149040555,0.00080112,3130.4,3129.3,0.00081202]
[1768149040797,0.251,3130.3,3129.3,0.00081202]
[1768149041001,0.5956179,3130.3,3129.3,0.00081202]
[1768149041902,0.99449676,3130.2,3128.9,0.000804]
[1768149042210,0.99530878,3129.7,3128.9,0.000804]
[1768149042483,0.251,3129.6,3128.9,0.000804]
[1768149042783,0.251,3129.6,3128.3,0.00082094]
[1768149042784,0.000804,3129.3,3128.3,0.00082094]
[1768149043079,1.38397522,3129.3,3128.3,0.00082094]
[1768149044502,0.99449676,3129.2,3128.3,0.00082094]
[1768149044798,0.00082094,3128.7,3127.3,3.331206]
[1768149044969,0.251,3128.6,3127.3,3.335391]
[1768149045169,0.99449676,3128.5,3126.9,3.820698]
[1768149045375,0.99449676,3128.5,3127.0,0.3821698]
[1768149045578,0.99449676,3128.5,3126.9,3.820698]
[1768149045770,0.99449676,3128.5,3126.9,3.229698]
[1768149045976,0.009648,3129.0,3126.8,0.001]
[1768149045977,6.38977363,3130.4,3129.3,0.00081283]
[1768149046204,6.38977363,3130.4,3129.1,0.009648]
[1768149046205,3.19447993,3130.4,3129.1,0.009648]
[1768149046406,0.27107496,3130.3,3129.3,0.00081364]
[1768149046592,0.251,3130.3,3129.3,0.00081364]
[1768149047092,0.0008012,3130.4,3129.3,0.00081364]
[1768149047291,0.251,3130.3,3129.3,0.00081364]
[1768149047503,0.0008012,3130.4,3130.2,0.251]
[1768149047710,0.2501988,3130.3,3130.2,0.251]
[1768149048001,0.002,3130.5,3130.3,0.02031757]
[1768149048381,0.002,3130.8,3130.3,0.02031757]
[1768149048582,0.251,3130.7,3130.0,0.00080128]
[1768149049790,3.44519897,3130.7,3129.3,0.00081364]
[1768149049990,0.00080128,3130.4,3129.3,3.19634835]
[1768149050177,0.00080128,3130.4,3129.3,0.00081364]
[1768149050398,0.251,3130.3,3129.3,0.00081364]
[1768149050812,3.44559283,3130.3,3129.3,0.00081364]
[1768149050982,0.02007496,3130.2,3129.3,0.00081364]
[1768149051177,0.009648,3130.2,3129.3,0.00081364]
[1768149051415,0.0345,3131.9,3129.5,0.91566639]
[1768149051601,0.0345,3131.9,3130.1,0.91566639]
[1768149051807,0.0218284,3132.5,3131.5,0.91566639]
[1768149052004,0.0218284,3132.5,3131.4,0.009648]
[1768149052195,0.0218284,3132.5,3131.4,0.92531439]
[1768149052512,0.0218284,3132.5,3131.1,0.25952256]
[1768149052513,0.99449676,3133.7,3131.1,2.686234]
[1768149052514,3.19287329,3132.8,3131.1,2.686234]
[1768149052809,3.19287329,3132.8,3131.5,0.91566639]
[1768149052810,0.0008024,3132.8,3131.5,0.91566639]
[1768149053011,0.0008024,3132.8,3131.6,0.25952256]
[1768149053012,0.251,3132.7,3131.6,0.25952256]
[1768149053509,0.251,3132.7,3131.6,0.91566639]
[1768149053714,0.0008024,3132.8,3131.5,1.17518895]
[1768149053930,0.0008024,3132.8,3131.8,0.91566639]
[1768149054336,0.251,3133.4,3132.4,0.00080248]
[1768149054724,0.009648,3133.1,3132.4,0.00080248]
[1768149055033,0.009648,3132.9,3130.6,0.91566639]
[1768149055230,0.00080248,3132.8,3130.9,7.950952]
[1768149055537,0.00080248,3132.8,3130.8,3.19405062]
[1768149055538,0.00080248,3132.8,3131.2,0.91566639]
[1768149055838,0.251,3132.7,3131.4,3.19338074]
[1768149056008,0.251,3132.7,3131.2,0.91566639]
[1768149056208,0.002,3132.5,3131.0,3.45332413]
[1768149056516,0.251,3132.4,3131.0,3.45331957]
[1768149056721,6.38508444,3132.3,3131.1,0.34533196]
[1768149056941,6.38508444,3132.3,3130.8,0.25952256]
[1768149057238,13.76466564,3132.3,3130.1,0.91566639]
[1768149057551,13.76466564,3132.3,3130.0,0.00080136]
[1768149057552,0.99449676,3131.9,3130.0,0.00080136]
[1768149057741,0.009648,3131.6,3130.0,0.00080136]
[1768149057918,0.251,3131.5,3130.0,0.00080136]
[1768149058126,0.99449676,3131.6,3130.0,3.19564317]
[1768149058328,0.251,3131.5,3130.1,0.31956432]
[1768149058641,0.251,3131.5,3130.1,0.35151218]
[1768149058841,6.38691958,3131.4,3130.0,0.00080136]
[1768149059837,9.58037937,3131.4,3130.0,0.00080136]
[1768149060035,12.77383916,3131.4,3130.0,0.00080136]
[1768149060236,6.38691958,3131.4,3130.0,0.00080136]
[1768149060745,0.24955931,3131.3,3130.0,0.00080136]
[1768149060927,6.38753152,3131.1,3130.0,0.00080136]
[1768149061929,3.19351538,3131.4,3130.0,0.00080136]
[1768149061930,0.002804,3134.1,3132.3,0.91566639]
[1768149062128,0.251,3134.6,3133.7,0.0008048]
[1768149062645,0.13441115,3134.6,3133.7,0.0008048]
[1768149063961,3.33425885,3134.6,3133.7,0.0008048]
[1768149064145,0.020322,3134.3,3133.7,0.0008048]
[1768149064322,0.020322,3134.3,3132.4,0.95155755]
[1768149064323,0.02997,3134.2,3132.4,0.95155755]
[1768149064529,0.020322,3134.0,3132.4,0.95155755]
[1768149064836,3.21204904,3133.1,3132.4,0.00080256]
[1768149065053,0.251,3133.0,3131.9,0.16416413]
[1768149065359,0.00080256,3132.8,3131.9,0.16416413]
[1768149065539,0.00080256,3132.8,3131.9,3.35702024]
[1768149065733,0.00080256,3132.8,3131.9,0.16416413]
[1768149065927,0.00080256,3132.8,3132.0,0.03192848]
[1768149066124,0.251,3133.0,3131.9,6.72162045]
[1768149066455,0.251,3133.0,3131.6,1.21027755]
[1768149066456,0.251,3133.2,3132.4,0.00080264]
[1768149066755,9.57452267,3133.4,3132.4,0.00080264]
[1768149066756,6.38301188,3133.4,3132.4,0.00080264]
[1768149066934,3.19182891,3133.0,3132.4,0.00080264]
[1768149067142,0.251,3132.9,3132.4,0.00080264]
[1768149067950,3.19157381,3133.3,3132.4,0.00080264]
[1768149067951,0.0008048,3134.1,3132.6,0.94604941]
[1768149068150,0.009648,3134.9,3134.6,2.345352]
[1768149068338,0.16649961,3135.0,3134.8,2.345352]
[1768149068546,0.251,3135.4,3134.6,0.0008048]
[1768149068747,0.260648,3135.4,3134.6,0.0008048]
[1768149068960,6.37897488,3135.3,3134.6,0.0008048]
[1768149069257,0.002,3134.3,3133.7,0.0008056]
[1768149069469,0.251,3134.2,3133.7,0.0008056]
[1768149069681,0.251,3134.1,3133.7,0.0008056]
[1768149070359,0.251,3134.0,3133.7,0.0008056]
[1768149070559,0.002,3134.3,3133.7,0.0008056]
[1768149070742,0.251,3134.2,3133.7,0.0008056]
[1768149071072,3.44164705,3134.2,3133.7,0.0008056]
[1768149071368,0.251,3134.2,3133.7,0.0008056]
[1768149071576,0.002,3134.3,3133.7,0.0008056]
[1768149071867,0.251,3134.2,3133.7,0.0008056]
[1768149073040,3.19070865,3134.1,3132.7,3.19211093]
[1768149073240,3.19070865,3134.1,3132.8,0.03192032]
[1768149073241,0.009648,3134.0,3132.8,0.03192032]
[1768149073442,0.009648,3133.8,3132.4,0.00080264]
[1768149073755,6.3822229,3134.1,3132.6,3.1922022]
[1768149073956,0.251,3134.0,3132.6,3.1922022]
[1768149074351,6.3822229,3134.1,3132.6,3.1922022]
[1768149074557,0.251,3134.0,3132.6,3.1922022]
[1768149075363,6.38182456,3133.9,3132.4,0.00080264]
[1768149075675,3.19091228,3133.9,3132.4,0.00080264]
[1768149075871,0.251,3133.8,3132.4,0.03272704]
[1768149076178,0.251,3133.8,3132.4,0.00080264]
[1768149076543,0.28292848,3133.8,3132.4,0.00080264]
[1768149076750,0.002,3134.3,3132.4,0.00080264]
[1768149076751,0.00080128,3135.5,3133.1,0.99604941]
[1768149076957,0.251,3134.9,3133.8,11.364233]
[1768149077478,0.251,3134.9,3133.8,3.1910141]
[1768149077848,0.251,3134.8,3133.8,3.1910141]
[1768149078044,3.19063101,3135.0,3133.8,3.1910141]
[1768149078364,3.44089441,3134.9,3133.8,3.19097235]
[1768149078674,6.63078882,3134.9,3133.7,0.0008064]
[1768149078863,3.18989441,3134.9,3133.8,3.1910041]
[1768149079067,0.251,3134.8,3133.8,3.1910041]
[1768149079278,0.251,3134.8,3133.7,3.19188993]
[1768149079676,3.19009793,3134.7,3133.7,0.0008064]
[1768149080195,6.38019586,3134.7,3133.7,0.0008064]
[1768149080350,0.009648,3134.6,3133.7,0.0008064]
[1768149080549,0.009648,3134.6,3132.8,3.19200975]
[1768149080870,0.009648,3134.6,3132.4,0.00080264]
[1768149080871,0.0008064,3134.1,3132.5,2.913805]
[1768149081065,0.0008064,3134.1,3132.5,0.29146076]
[1768149081272,0.002,3133.5,3132.4,3.1932381]
[1768149081452,0.251,3133.4,3132.4,3.1932381]
[1768149081652,0.251,3133.4,3132.5,3.405216]
[1768149081852,0.251,3133.4,3132.6,3.19223648]
[1768149082184,3.44243729,3133.4,3132.4,0.00080264]
[1768149082483,0.002,3133.5,3132.4,0.00080264]
[1768149082484,0.251,3133.3,3132.4,0.00080264]
[1768149082697,3.19332505,3133.5,3132.4,0.00080264]
[1768149082698,0.251,3133.2,3132.4,0.00080264]
[1768149083655,6.38345408,3133.1,3132.4,0.00080264]
[1768149083980,9.57518112,3133.1,3132.2,0.001]
[1768149084152,0.00080264,3132.8,3132.2,0.001]
[1768149084351,0.251,3132.7,3132.2,0.001]
[1768149085284,0.009648,3132.5,3130.8,3.19399356]
[1768149085451,0.009648,3132.3,3130.9,0.31939936]
[1768149085653,6.38508444,3132.3,3130.5,3.19437789]
[1768149085875,6.38508444,3132.3,3130.6,2.906791]
[1768149086066,9.58727466,3132.3,3130.6,2.906791]
[1768149086385,0.009648,3132.1,3130.6,2.168791]
[1768149086579,0.251,3132.0,3130.6,2.168791]
[1768149086782,0.009648,3131.9,3130.7,0.85575468]
[1768149086996,0.009648,3131.9,3130.4,3.19446092]
[1768149087290,0.009648,3134.4,3133.7,0.0008072]